fUSD/lending_fUSD_20250127
["ID","MTS","AMOUNT","RATE_DAILY","PERIOD"]
[350541233,1737956984076,-400.0,9.8e-05,3]
[350541234,1737956984097,-173.57,9.841e-05,2]
[350541235,1737956984119,-250.0,9.871e-05,2]
[350541236,1737956984142,-900.0,9.9e-05,3]
[350541237,1737956984164,-150.0,9.998e-05,2]
[350541238,1737956984187,-2037.788,9.999e-05,2]
[350541239,1737956984209,-157.875,9.999e-05,2]
[350541240,1737956984230,-9461.59067676,9.999e-05,2]
[350541241,1737956984251,-1723.50072965,9.999e-05,3]
[350541242,1737956984273,-168.64023808,9.999e-05,2]
[350541243,1737956984297,-1558612.73929364,0.0001,2]
[350541244,1737957018182,2691.26875991,0.00022,120]
[350541270,1737957031488,-161.25,9.856e-05,2]
[350541271,1737957031497,-5320.22500001,0.0001,2]
[350541272,1737957031508,-2813.51741713,0.0001,2]
[350541273,1737957035740,-10040.04,0.0001,2]
[350541274,1737957035887,-600.77999861,0.0001,2]
[350541275,1737957035898,-1731.95333331,0.0001,2]
[350541276,1737957035909,-602.4018,0.0001,2]
[350541277,1737957035965,-2400.0,0.0001,2]
[350541278,1737957036045,-1035.81889723,0.0001,2]
[350541403,1737957037376,-7010.5,0.0001,2]
[350541412,1737957037450,-4921.36757624,0.0001,2]
[350541414,1737957037461,-9396.77902211,0.0001,2]
[350541416,1737957037472,-964.15709161,0.0001,2]
[350541418,1737957037482,-759.83484045,0.0001,2]
[350541421,1737957037493,-3630.77344552,0.0001,2]
[350541423,1737957037504,-3999.56086381,0.0001,2]
[350541434,1737957037592,-1080.39336239,0.0001,2]
[350541436,1737957037603,-723.39396266,0.0001,2]
[350541438,1737957037614,-510393.68282681,0.0001,2]
[350541440,1737957037627,-2220.08948118,0.0001,2]
[350541442,1737957037638,-10067.00275651,0.0001,2]
[350541447,1737957037669,-17373.07172104,0.0001,2]
[350541449,1737957037680,-469.86632997,0.0001,2]
[350541649,1737957039644,-3145.60999994,0.0001,2]
[350541652,1737957039656,-2004.0,0.0001,2]
[350541654,1737957039667,-292.560002,0.0001,2]
[350541656,1737957039678,-3503.85,0.0001,2]
[350541662,1737957039725,-6406.3984,0.0001,2]
[350541664,1737957039736,-31530.44213059,0.0001,2]
[350541979,1737957042853,-269.0771102,0.0001,2]
[350541992,1737957042938,-264.09813973,0.0001,2]
[350541994,1737957042950,-62999.99999999,0.0001,2]
[350541997,1737957042961,-996.22582461,0.0001,2]
[350542008,1737957043040,-1483.2280657,0.0001,2]
[350542010,1737957043052,-1578.199372,0.0001,2]
[350542256,1737957045456,-259.0,0.0001,2]
[350542272,1737957045539,-271.49827325,0.0001,2]
[350542280,1737957045578,-2158.87178681,0.0001,2]
[350542380,1737957046230,-502.0521,0.0001,2]
[350542382,1737957046241,-7304.0787095,0.0001,2]
[350542385,1737957046260,-8733.3003,0.0001,2]
[350542388,1737957046279,-401.901696,0.0001,2]
[350542391,1737957046293,-324.485,0.0001,2]
[350542393,1737957046309,-4887.84139212,0.0001,2]
[350542395,1737957046319,-641.13399861,0.0001,2]
[350542398,1737957046330,-305.63911621,0.0001,2]
[350544025,1737957070271,1965.00164536,9.581e-05,7]
[350544026,1737957071114,979.99999999,9.581e-05,7]
[350544027,1737957199549,198.94,7.911e-05,2]
[350544028,1737957199744,198.94,8.702e-05,2]
[350544029,1737957199982,198.94,9.493e-05,2]
[350544030,1737957507164,1668.97,8.219e-05,2]
[350544031,1737957511516,165.74,0.00016658,30]
[350544032,1737957605945,2055.0,0.00022,120]
[350544035,1737957688746,438.32,9.453e-05,2]
[350544036,1737957703877,250.0,9.442e-05,2]
[350544043,1737957821928,250.0,9.498e-05,2]
[350544044,1737957846397,300.0,0.00022,120]
[350544045,1737957906572,471.0,0.00022,120]
[350544046,1737957915631,167.95,9.364e-05,2]
[350544047,1737957947716,1004.34,9.419e-05,2]
[350544048,1737958009621,466.31,9.359e-05,2]
[350544049,1737958017623,162.83,9.406e-05,2]
[350544053,1737958070701,200.0,9.364e-05,2]
[350544054,1737958101703,1852.42,9.35e-05,2]
[350544055,1737958127377,198.94,7.48e-05,2]
[350544056,1737958127585,198.94,9.35e-05,2]
[350544785,1737958212160,885.0,9.5e-05,2]
[350544790,1737958231667,-250.0,9.508e-05,2]
[350544791,1737958231677,-748.83,9.539e-05,2]
[350544792,1737958231781,-751.17,9.539e-05,2]
[350544793,1737958231791,-200.04302972,9.585e-05,2]
[350544794,1737958231801,-300.0,9.585e-05,2]
[350544795,1737958231811,-3886.09842436,9.586e-05,2]
[350544796,1737958231825,-3450.0,9.586e-05,2]
[350544797,1737958231892,-5761.90157564,9.586e-05,2]
[350544798,1737958231902,-14552.01304157,9.592e-05,2]
[350544799,1737958231914,-4629.20944486,9.592e-05,2]
[350544800,1737958231932,-311.07903888,9.592e-05,2]
[350544801,1737958232030,-825.64126738,9.592e-05,2]
[350544802,1737958232039,-4597.3587326,9.592e-05,2]
[350544803,1737958232056,-550.99707701,9.592e-05,2]
[350544804,1737958232166,-1507.2,9.592e-05,2]
[350544805,1737958232178,-2257.524793,9.592e-05,2]
[350544806,1737958232189,-1089.49602293,9.592e-05,2]
[350544808,1737958232201,-266.4648,9.592e-05,2]
[350544810,1737958232212,-1709.6718678,9.592e-05,2]
[350544858,1737958237559,-725.57670666,9.592e-05,2]
[350544859,1737958237568,-550.99,9.626e-05,2]
[350544861,1737958237577,-720.95329334,9.686e-05,2]
[350544863,1737958237910,-528.05670666,9.686e-05,2]
[350544864,1737958237920,-1000.0,9.689e-05,2]
[350544865,1737958237930,-200.0430297,9.793e-05,2]
[350544866,1737958237939,-255.56,9.831e-05,2]
[350544867,1737958237949,-14.10026364,9.9e-05,2]
[350544868,1737958237961,-460.00000003,9.9e-05,2]
[350544869,1737958237973,-111.94933633,9.9e-05,2]
[350544871,1737958237983,-150.0,9.919e-05,2]
[350544873,1737958237993,-301.5,9.92e-05,2]
[350544875,1737958238002,-1898.55840832,9.92e-05,2]
[350544877,1737958238015,-104.88159168,9.92e-05,2]
[350544879,1737958238025,-849.68917858,0.0001,2]
[350544881,1737958238037,-253.98301328,0.0001,2]
[350544883,1737958238049,-973.75677606,0.0001,2]
[350544885,1737958238060,-510.0000005,0.0001,2]
[350544888,1737958238072,-453.57299929,0.0001,2]
[350544890,1737958238084,-1000.0,0.0001,2]
[350544892,1737958238096,-4112.68781234,0.0001,2]
[350544894,1737958238107,-565.15792595,0.0001,2]
[350544895,1737958238118,-1006.4597305,0.0001,2]
[350544896,1737958238130,-5942.32340163,0.0001,2]
[350544897,1737958238159,-29725.81769927,0.0001,2]
[350544898,1737958238169,-10175.77669,0.0001,2]
[350544899,1737958238179,-1000.00015747,0.0001,2]
[350544900,1737958238188,-500.0,0.0001,2]
[350544901,1737958238198,-3000.0,0.0001,2]
[350544902,1737958238208,-200.0430297,0.0001,2]
[350544903,1737958238217,-171.7,0.00010045,2]
[350544904,1737958238226,-160.85,0.00010137,2]
[350544905,1737958238236,-162.98,0.00010137,2]
[350544906,1737958238245,-172.17,0.00010137,2]
[350544907,1737958238255,-373.8026752,0.00010384,2]
[350544908,1737958238264,-1668.97,0.00010458,2]
[350544909,1737958238273,-1000.0,0.000105,2]
[350544910,1737958238283,-934.9099,0.000105,2]
[350544911,1737958238292,-420.0,0.00010544,2]
[350544912,1737958238302,-373.8026752,0.00010568,2]
[350544913,1737958238312,-782.94,0.00010576,2]
[350544914,1737958238321,-1004.34,0.00010596,2]
[350544915,1737958238331,-30553.43290448,0.000106,2]
[350544916,1737958238343,-7015.94967,0.000106,2]
[350544917,1737958238371,-45602.27462552,0.000106,2]
[350544918,1737958238380,-36205.8099,0.000107,2]
[350544919,1737958238389,-1000.0,0.000107,3]
[350544920,1737958238399,-5000.0,0.000107,2]
[350544921,1737958238408,-6367.54160289,0.00010758,2]
[350544922,1737958238417,-2922.33537343,0.00010758,2]
[350544923,1737958238427,-166287.61381824,0.000108,2]
[350544924,1737958238441,-2000.0,0.000108,3]
[350544925,1737958238450,-166.66,0.00010848,2]
[350544926,1737958238459,-630.1442,0.00010857,2]
[350544927,1737958238470,-154.60776283,0.00010858,2]
[350544928,1737958238479,-373.8026752,0.00010865,2]
[350544929,1737958238488,-171.7,0.00010874,2]
[350544930,1737958238498,-1000.0,0.000109,2]
[350544931,1737958238508,-169.3645273,0.000109,2]
[350544932,1737958238518,-3000.0,0.000109,3]
[350544933,1737958238527,-255.0,0.00010911,2]
[350544934,1737958238536,-381.95666904,0.00010948,2]
[350544936,1737958238545,-41448.25779929,0.00010957,2]
[350544938,1737958238554,-1723.50072965,0.00010957,3]
[350544939,1737958238563,-168.64023808,0.00010957,2]
[350544941,1737958238573,-500.0,0.00010958,2]
[350544944,1737958238582,-513.13864094,0.00010958,2]
[350544945,1737958238597,-252.44652349,0.00010958,2]
[350544947,1737958238606,-307.37201943,0.00010958,2]
[350544949,1737958238615,-500.95246634,0.00010958,2]
[350544950,1737958238624,-503.11033606,0.00010958,2]
[350544951,1737958238633,-501.51247099,0.00010958,2]
[350544952,1737958238642,-220.366016,0.00010958,2]
[350544953,1737958238651,-500.0,0.00010958,2]
[350544954,1737958238660,-500.0,0.00010958,2]
[350544955,1737958238669,-500.0,0.00010958,2]
[350544957,1737958238678,-500.0,0.00010958,2]
[350544959,1737958238687,-195.09586945,0.00010958,2]
[350544961,1737958238696,-500.0,0.00010958,2]
[350544963,1737958238705,-500.0,0.00010958,2]
[350544965,1737958238714,-500.0,0.00010958,2]
[350544967,1737958238723,-500.0,0.00010958,2]
[350544968,1737958238733,-500.0,0.00010958,2]
[350544969,1737958238742,-169.58425459,0.00010958,2]
[350544970,1737958238751,-500.0,0.00010958,2]
[350544971,1737958238760,-641.34876946,0.00010958,2]
[350544972,1737958238769,-510.58436152,0.00010958,2]
[350544973,1737958238778,-500.0,0.00010958,2]
[350544974,1737958238788,-500.0,0.00010958,2]
[350544975,1737958238797,-500.0,0.00010958,2]
[350544976,1737958238806,-500.0,0.00010958,2]
[350544977,1737958238815,-500.0,0.00010958,2]
[350544979,1737958238824,-500.0,0.00010958,2]
[350544980,1737958238834,-500.0,0.00010958,2]
[350544982,1737958238843,-500.0,0.00010958,2]
[350544984,1737958238853,-501.48388193,0.00010958,2]
[350544986,1737958238862,-500.0,0.00010958,2]
[350544988,1737958238872,-506.49988664,0.00010958,2]
[350544990,1737958238881,-503.09243343,0.00010958,2]
[350544992,1737958238890,-501.65945409,0.00010958,2]
[350544994,1737958238899,-508.42788591,0.00010958,2]
[350544996,1737958238909,-510.39496562,0.00010958,2]
[350544998,1737958238918,-500.0,0.00010958,2]
[350545000,1737958238927,-501.35934335,0.00010958,2]
[350545002,1737958238937,-500.0,0.00010958,2]
[350545004,1737958238946,-500.0,0.00010958,2]
[350545006,1737958238955,-500.0,0.00010958,2]
[350545008,1737958238964,-609.05,0.00010958,2]
[350545010,1737958238973,-500.0,0.00010958,2]
[350545012,1737958238983,-504.98122699,0.00010958,2]
[350545014,1737958238992,-504.87973614,0.00010958,2]
[350545016,1737958239000,-500.0,0.00010958,2]
[350545018,1737958239010,-500.0,0.00010958,2]
[350545020,1737958239020,-500.0,0.00010958,2]
[350545022,1737958239030,-503.7881805,0.00010958,2]
[350545024,1737958239040,-500.0,0.00010958,2]
[350545026,1737958239049,-500.0,0.00010958,2]
[350545028,1737958239059,-500.0,0.00010958,2]
[350545030,1737958239068,-500.0,0.00010958,2]
[350545032,1737958239077,-500.0,0.00010958,2]
[350545034,1737958239086,-500.0,0.00010958,2]
[350545036,1737958239095,-191.36385939,0.00010958,2]
[350545038,1737958239105,-500.0,0.00010958,2]
[350545039,1737958239114,-507.38553295,0.00010958,2]
[350545041,1737958239123,-504.11192682,0.00010958,2]
[350545044,1737958239132,-502.69414261,0.00010958,2]
[350545045,1737958239142,-153.645837,0.00010958,2]
[350545048,1737958239151,-500.0,0.00010958,2]
[350545050,1737958239162,-500.0,0.00010958,2]
[350545051,1737958239172,-502.41315437,0.00010958,2]
[350545053,1737958239182,-508.96353135,0.00010958,2]
[350545056,1737958239191,-500.0,0.00010958,2]
[350545058,1737958239200,-500.0,0.00010958,2]
[350545060,1737958239209,-314.54387219,0.00010958,2]
[350545062,1737958239219,-500.0,0.00010958,2]
[350545064,1737958239228,-500.0,0.00010958,2]
[350545066,1737958239238,-564.76799695,0.00010958,2]
[350545068,1737958239247,-500.0,0.00010958,2]
[350545070,1737958239256,-500.0,0.00010958,2]
[350545072,1737958239265,-500.0,0.00010958,2]
[350545074,1737958239274,-500.0,0.00010958,2]
[350545076,1737958239283,-500.0,0.00010958,2]
[350545078,1737958239292,-500.0,0.00010958,2]
[350545080,1737958239301,-500.0,0.00010958,2]
[350545082,1737958239310,-500.0,0.00010958,2]
[350545084,1737958239319,-500.0,0.00010958,2]
[350545086,1737958239327,-616.79,0.00010958,2]
[350545087,1737958239337,-500.0,0.00010958,2]
[350545089,1737958239345,-500.0,0.00010958,2]
[350545091,1737958239355,-500.0,0.00010958,2]
[350545095,1737958239364,-500.0,0.00010958,2]
[350545097,1737958239373,-500.0,0.00010958,2]
[350545098,1737958239382,-500.0,0.00010958,2]
[350545100,1737958239391,-500.0,0.00010958,2]
[350545102,1737958239401,-520.43121285,0.00010958,2]
[350545105,1737958239410,-341.4733515,0.00010958,2]
[350545106,1737958239419,-518.20944758,0.00010958,2]
[350545109,1737958239432,-543.57263767,0.00010958,2]
[350545110,1737958239441,-502.41779629,0.00010958,2]
[350545112,1737958239451,-500.0,0.00010958,2]
[350545114,1737958239460,-500.0,0.00010958,2]
[350545116,1737958239471,-500.0,0.00010958,2]
[350545118,1737958239480,-520.58891235,0.00010958,2]
[350545120,1737958239490,-500.0,0.00010958,2]
[350545122,1737958239499,-500.0,0.00010958,2]
[350545125,1737958239511,-500.0,0.00010958,2]
[350545127,1737958239521,-500.0,0.00010958,2]
[350545129,1737958239530,-233.29664698,0.00010958,2]
[350545131,1737958239539,-510.7845067,0.00010958,2]
[350545133,1737958239548,-519.39698876,0.00010958,2]
[350545135,1737958239557,-500.0,0.00010958,2]
[350545137,1737958239566,-500.0,0.00010958,2]
[350545139,1737958239575,-500.0,0.00010958,2]
[350545141,1737958239584,-524.85384067,0.00010958,2]
[350545144,1737958239599,-500.0,0.00010958,2]
[350545145,1737958239609,-500.0,0.00010958,2]
[350545148,1737958239618,-449.8995555,0.00010958,2]
[350545149,1737958239627,-500.0,0.00010958,2]
[350545151,1737958239636,-500.0,0.00010958,2]
[350545153,1737958239645,-500.0,0.00010958,2]
[350545155,1737958239654,-585.97224379,0.00010958,2]
[350545157,1737958239663,-500.0,0.00010958,2]
[350545159,1737958239672,-509.02483903,0.00010958,2]
[350545161,1737958239681,-500.0,0.00010958,2]
[350545163,1737958239690,-511.35061459,0.00010958,2]
[350545165,1737958239699,-500.0,0.00010958,2]
[350545167,1737958239708,-496.70207888,0.00010958,2]
[350545169,1737958239717,-500.0,0.00010958,2]
[350545171,1737958239726,-500.0,0.00010958,2]
[350545173,1737958239735,-500.0,0.00010958,2]
[350545175,1737958239744,-529.59548845,0.00010958,2]
[350545177,1737958239753,-203.24526333,0.00010958,2]
[350545179,1737958239762,-500.0,0.00010958,2]
[350545181,1737958239771,-507.08339668,0.00010958,2]
[350545183,1737958239780,-505.29242192,0.00010958,2]
[350545185,1737958239789,-500.0,0.00010958,2]
[350545187,1737958239799,-500.0,0.00010958,2]
[350545189,1737958239808,-625.58620089,0.00010958,2]
[350545191,1737958239817,-553.58909478,0.00010958,2]
[350545193,1737958239827,-500.0,0.00010958,2]
[350545195,1737958239836,-500.0,0.00010958,2]
[350545197,1737958239845,-500.0,0.00010958,2]
[350545199,1737958239855,-500.0,0.00010958,2]
[350545201,1737958239864,-500.0,0.00010958,2]
[350545203,1737958239873,-532.31657366,0.00010958,2]
[350545205,1737958239883,-500.0,0.00010958,2]
[350545206,1737958239892,-500.0,0.00010958,2]
[350545208,1737958239901,-500.0,0.00010958,2]
[350545210,1737958239910,-500.0,0.00010958,2]
[350545212,1737958239919,-500.0,0.00010958,2]
[350545214,1737958239929,-500.0,0.00010958,2]
[350545216,1737958239939,-230.07260138,0.00010958,2]
[350545218,1737958239948,-500.0,0.00010958,2]
[350545220,1737958239957,-500.0,0.00010958,2]
[350545222,1737958239967,-500.0,0.00010958,2]
[350545225,1737958239976,-500.0,0.00010958,2]
[350545227,1737958239985,-538.47294252,0.00010958,2]
[350545228,1737958239995,-513.39837964,0.00010958,2]
[350545230,1737958240004,-500.0,0.00010958,2]
[350545232,1737958240014,-554.15531245,0.00010958,2]
[350545234,1737958240023,-500.0,0.00010958,2]
[350545236,1737958240033,-505.91385838,0.00010958,2]
[350545238,1737958240042,-500.0,0.00010958,2]
[350545240,1737958240052,-500.0,0.00010958,2]
[350545242,1737958240061,-521.76320769,0.00010958,2]
[350545243,1737958240070,-507.62726603,0.00010958,2]
[350545244,1737958240079,-500.0,0.00010958,2]
[350545245,1737958240088,-500.0,0.00010958,2]
[350545246,1737958240097,-500.0,0.00010958,2]
[350545247,1737958240106,-500.0,0.00010958,2]
[350545248,1737958240115,-541.8808281,0.00010958,2]
[350545249,1737958240125,-500.0,0.00010958,2]
[350545250,1737958240135,-500.0,0.00010958,2]
[350545251,1737958240144,-214.45226619,0.00010958,2]
[350545252,1737958240154,-500.0,0.00010958,2]
[350545254,1737958240167,-500.0,0.00010958,2]
[350545256,1737958240176,-500.0,0.00010958,2]
[350545258,1737958240185,-500.0,0.00010958,2]
[350545260,1737958240194,-524.30190039,0.00010958,2]
[350545262,1737958240203,-504.6392276,0.00010958,2]
[350545264,1737958240213,-596.10350816,0.00010958,2]
[350545266,1737958240222,-508.40267653,0.00010958,2]
[350545268,1737958240231,-500.0,0.00010958,2]
[350545270,1737958240240,-500.0,0.00010958,2]
[350545272,1737958240250,-500.0,0.00010958,2]
[350545274,1737958240258,-500.0,0.00010958,2]
[350545276,1737958240267,-334.71232055,0.00010958,2]
[350545278,1737958240276,-511.4542972,0.00010958,2]
[350545280,1737958240286,-500.0,0.00010958,2]
[350545282,1737958240295,-500.0,0.00010958,2]
[350545284,1737958240304,-500.0,0.00010958,2]
[350545286,1737958240312,-500.0,0.00010958,2]
[350545288,1737958240322,-500.0,0.00010958,2]
[350545291,1737958240331,-500.0,0.00010958,2]
[350545293,1737958240339,-500.0,0.00010958,2]
[350545295,1737958240349,-500.0,0.00010958,2]
[350545296,1737958240358,-500.0,0.00010958,2]
[350545298,1737958240367,-500.0,0.00010958,2]
[350545300,1737958240376,-500.0,0.00010958,2]
[350545302,1737958240385,-500.0,0.00010958,2]
[350545304,1737958240394,-523.32106928,0.00010958,2]
[350545306,1737958240404,-500.0,0.00010958,2]
[350545308,1737958240413,-553.75716457,0.00010958,2]
[350545310,1737958240422,-509.36157092,0.00010958,2]
[350545312,1737958240433,-512.02001611,0.00010958,2]
[350545315,1737958240444,-500.0,0.00010958,2]
[350545317,1737958240454,-500.0,0.00010958,2]
[350545319,1737958240463,-500.0,0.00010958,2]
[350545321,1737958240474,-500.0,0.00010958,2]
[350545323,1737958240483,-517.58227366,0.00010958,2]
[350545324,1737958240492,-500.0,0.00010958,2]
[350545326,1737958240501,-500.0,0.00010958,2]
[350545328,1737958240511,-500.0,0.00010958,2]
[350545330,1737958240521,-500.0,0.00010958,2]
[350545332,1737958240531,-500.0,0.00010958,2]
[350545334,1737958240541,-500.0,0.00010958,2]
[350545336,1737958240551,-437.52071069,0.00010958,2]
[350545338,1737958240560,-500.0,0.00010958,2]
[350545340,1737958240569,-500.0,0.00010958,2]
[350545343,1737958240579,-436.81056325,0.00010958,2]
[350545345,1737958240591,-500.0,0.00010958,2]
[350545347,1737958240602,-291.66167262,0.00010958,2]
[350545349,1737958240611,-500.0,0.00010958,2]
[350545351,1737958240620,-509.41488259,0.00010958,2]
[350545353,1737958240630,-500.0,0.00010958,2]
[350545355,1737958240640,-523.42765883,0.00010958,2]
[350545357,1737958240649,-506.7881571,0.00010958,2]
[350545359,1737958240659,-500.0,0.00010958,2]
[350545361,1737958240668,-490.34086481,0.00010958,2]
[350545363,1737958240677,-500.0,0.00010958,2]
[350545364,1737958240686,-502.01829875,0.00010958,2]
[350545365,1737958240695,-500.0,0.00010958,2]
[350545366,1737958240705,-500.0,0.00010958,2]
[350545367,1737958240714,-500.0,0.00010958,2]
[350545368,1737958240724,-490.0,0.00010958,2]
[350545369,1737958240733,-500.0,0.00010958,2]
[350545370,1737958240742,-411.25399424,0.00010958,2]
[350545371,1737958240752,-500.0,0.00010958,2]
[350545372,1737958240761,-500.0,0.00010958,2]
[350545374,1737958240771,-500.0,0.00010958,2]
[350545376,1737958240780,-517.68772648,0.00010958,2]
[350545378,1737958240790,-500.0,0.00010958,2]
[350545380,1737958240799,-500.0,0.00010958,2]
[350545381,1737958240808,-508.51590585,0.00010958,2]
[350545383,1737958240818,-500.0,0.00010958,2]
[350545386,1737958240827,-500.0,0.00010958,2]
[350545388,1737958240837,-509.20341919,0.00010958,2]
[350545390,1737958240848,-500.0,0.00010958,2]
[350545392,1737958240857,-500.0,0.00010958,2]
[350545393,1737958240867,-502.54670353,0.00010958,2]
[350545395,1737958240877,-500.0,0.00010958,2]
[350545398,1737958240887,-500.0,0.00010958,2]
[350545399,1737958240896,-500.0,0.00010958,2]
[350545402,1737958240905,-500.0,0.00010958,2]
[350545403,1737958240915,-518.77054842,0.00010958,2]
[350545406,1737958240924,-500.0,0.00010958,2]
[350545408,1737958240933,-500.0,0.00010958,2]
[350545410,1737958240942,-500.0,0.00010958,2]
[350545412,1737958240951,-500.0,0.00010958,2]
[350545413,1737958240961,-500.0,0.00010958,2]
[350545415,1737958240970,-500.0,0.00010958,2]
[350545417,1737958240980,-500.0,0.00010958,2]
[350545419,1737958240989,-500.0,0.00010958,2]
[350545421,1737958240998,-414.279767,0.00010958,2]
[350545423,1737958241007,-500.0,0.00010958,2]
[350545425,1737958241016,-500.0,0.00010958,2]
[350545427,1737958241025,-500.0,0.00010958,2]
[350545429,1737958241034,-500.0,0.00010958,2]
[350545431,1737958241044,-505.82958269,0.00010958,2]
[350545449,1737958241201,-505.24432538,0.00010958,2]
[350545451,1737958241210,-500.0,0.00010958,2]
[350545453,1737958241219,-502.57173747,0.00010958,2]
[350545455,1737958241228,-500.0,0.00010958,2]
[350545457,1737958241237,-536.20116112,0.00010958,2]
[350545459,1737958241247,-524.30528994,0.00010958,2]
[350545461,1737958241256,-500.0,0.00010958,2]
[350545462,1737958241265,-500.0,0.00010958,2]
[350545464,1737958241274,-524.84284835,0.00010958,2]
[350545466,1737958241283,-500.0,0.00010958,2]
[350545467,1737958241292,-500.0,0.00010958,2]
[350545468,1737958241301,-500.0,0.00010958,2]
[350545469,1737958241310,-500.0,0.00010958,2]
[350545470,1737958241320,-500.0,0.00010958,2]
[350545471,1737958241329,-502.86736991,0.00010958,2]
[350545472,1737958241339,-500.0,0.00010958,2]
[350545473,1737958241350,-500.0,0.00010958,2]
[350545474,1737958241359,-500.0,0.00010958,2]
[350545475,1737958241368,-501.88990918,0.00010958,2]
[350545476,1737958241378,-289.00504655,0.00010958,2]
[350545478,1737958241387,-509.81509303,0.00010958,2]
[350545479,1737958241397,-500.0,0.00010958,2]
[350545481,1737958241407,-501.55218542,0.00010958,2]
[350545483,1737958241416,-614.56188142,0.00010958,2]
[350545485,1737958241426,-500.0,0.00010958,2]
[350545487,1737958241439,-500.0,0.00010958,2]
[350545489,1737958241449,-500.0,0.00010958,2]
[350545491,1737958241458,-500.0,0.00010958,2]
[350545493,1737958241468,-500.0,0.00010958,2]
[350545495,1737958241478,-500.0,0.00010958,2]
[350545497,1737958241487,-500.0,0.00010958,2]
[350545499,1737958241496,-500.0,0.00010958,2]
[350545501,1737958241506,-378.34057792,0.00010958,2]
[350545502,1737958241516,-501.98628512,0.00010958,2]
[350545503,1737958241526,-500.0,0.00010958,2]
[350545504,1737958241536,-500.0,0.00010958,2]
[350545505,1737958241545,-500.0,0.00010958,2]
[350545506,1737958241555,-500.0,0.00010958,2]
[350545507,1737958241565,-500.0,0.00010958,2]
[350545508,1737958241575,-500.0,0.00010958,2]
[350545509,1737958241585,-500.0,0.00010958,2]
[350545510,1737958241601,-500.0,0.00010958,2]
[350545511,1737958241610,-277.29119546,0.00010958,2]
[350545512,1737958241620,-562.39497826,0.00010958,2]
[350545513,1737958241630,-500.0,0.00010958,2]
[350545514,1737958241639,-258.36157831,0.00010958,2]
[350545515,1737958241648,-500.0,0.00010958,2]
[350545516,1737958241658,-500.0,0.00010958,2]
[350545517,1737958241667,-500.0,0.00010958,2]
[350545518,1737958241676,-500.0,0.00010958,2]
[350545519,1737958241685,-500.0,0.00010958,2]
[350545520,1737958241695,-500.0,0.00010958,2]
[350545521,1737958241704,-507.46722818,0.00010958,2]
[350545522,1737958241713,-500.0,0.00010958,2]
[350545523,1737958241722,-500.0,0.00010958,2]
[350545524,1737958241731,-500.85358849,0.00010958,2]
[350545525,1737958241740,-500.0,0.00010958,2]
[350545526,1737958241749,-500.0,0.00010958,2]
[350545527,1737958241758,-508.49420007,0.00010958,2]
[350545528,1737958241767,-500.0,0.00010958,2]
[350545529,1737958241776,-500.0,0.00010958,2]
[350545530,1737958241786,-433.49178807,0.00010958,2]
[350545531,1737958241795,-500.0,0.00010958,2]
[350545532,1737958241803,-500.0,0.00010958,2]
[350545533,1737958241812,-287.15805324,0.00010958,2]
[350545534,1737958241821,-500.0,0.00010958,2]
[350545535,1737958241830,-500.0,0.00010958,2]
[350545536,1737958241840,-500.0,0.00010958,2]
[350545537,1737958241849,-500.0,0.00010958,2]
[350545538,1737958241858,-490.34764601,0.00010958,2]
[350545539,1737958241867,-500.0,0.00010958,2]
[350545540,1737958241877,-500.0,0.00010958,2]